[Event "Titled Tuesday Blitz November 01 Late 2022"]
[White "Zhigalko, Sergei"]
[Black "Manolache, Marius"]
[WhiteFideId "13502956"]
[BlackFideId "1201530"]
[WhiteElo "2857"]
[BlackElo "2589"]
[Result "1-0"]
[Round "04"]
[TimeControl "180+1"]
[Date "2022.11.02"]
[WhiteClock "0:00:24"]
[BlackClock "0:00:20"]

1. e4 {[%clk 0:03:00]}  c5 {[%clk 0:02:58]} 2. Nf3 {[%clk 0:03:00]}  e6 {[%clk 0:02:58]} 3. c3 {[%clk 0:03:00]}  Nf6 {[%clk 0:02:56]} 4. e5 {[%clk 0:03:00]}  Nd5 {[%clk 0:02:57]} 5. Bc4 {[%clk 0:03:00]}  d6 {[%clk 0:02:55]} 6. d4 {[%clk 0:02:59]}  cxd4 {[%clk 0:02:55]} 7. cxd4 {[%clk 0:03:00]}  Nc6 {[%clk 0:02:51]} 8. O-O {[%clk 0:03:00]}  Be7 {[%clk 0:02:51]} 9. Bd2 {[%clk 0:02:59]}  dxe5 {[%clk 0:02:46]} 10. dxe5 {[%clk 0:03:00]}  Nb6 {[%clk 0:02:46]} 11. Bb3 {[%clk 0:02:59]}  Nd4 {[%clk 0:02:43]} 12. Ba4+ {[%clk 0:01:59]}  Bd7 {[%clk 0:02:39]} 13. Nxd4 {[%clk 0:01:54]}  Bxa4 {[%clk 0:02:35]} 14. Qg4 {[%clk 0:01:55]}  g6 {[%clk 0:02:11]} 15. Nc3 {[%clk 0:01:52]}  h5 {[%clk 0:02:00]} 16. Qe4 {[%clk 0:01:45]}  Qd7 {[%clk 0:01:57]} 17. Rac1 {[%clk 0:01:14]}  Rd8 {[%clk 0:01:25]} 18. Be3 {[%clk 0:01:14]}  O-O {[%clk 0:01:10]} 19. b3 {[%clk 0:00:43]}  Bc6 {[%clk 0:01:08]} 20. Nxc6 {[%clk 0:00:44]}  bxc6 {[%clk 0:00:54]} 21. Na4 {[%clk 0:00:40]}  Nxa4 {[%clk 0:00:42]} 22. Qxa4 {[%clk 0:00:40]}  c5 {[%clk 0:00:35]} 23. Qxd7 {[%clk 0:00:35]}  Rxd7 {[%clk 0:00:34]} 24. Bxc5 {[%clk 0:00:36]}  Bxc5 {[%clk 0:00:31]} 25. Rxc5 {[%clk 0:00:37]}  Rb8 {[%clk 0:00:31]} 26. Rfc1 {[%clk 0:00:25]}  Rd1+ {[%clk 0:00:20]} 27. Rxd1 {[%clk 0:00:24]} 1-0


[Site "https://www.chess.com"]

[Event "Titled Tuesday Blitz November 01 Late 2022"]
[White "Zierk, Steven"]
[Black "Sai Krishna G V"]
[WhiteFideId "2034255"]
[BlackFideId "5028280"]
[WhiteElo "2494"]
[BlackElo "2359"]
[Result "1-0"]
[Round "04"]
[TimeControl "180+1"]
[Date "2022.11.01"]
[WhiteClock "0:01:02"]
[BlackClock "0:00:41"]

1. e4 {[%clk 0:03:00]}  e5 {[%clk 0:02:56]} 2. Nf3 {[%clk 0:03:00]}  Nc6 {[%clk 0:02:56]} 3. Bc4 {[%clk 0:03:01]}  Nf6 {[%clk 0:02:56]} 4. d4 {[%clk 0:02:59]}  exd4 {[%clk 0:02:55]} 5. e5 {[%clk 0:02:59]}  d5 {[%clk 0:02:55]} 6. Bb5 {[%clk 0:03:00]}  Ne4 {[%clk 0:02:55]} 7. Nxd4 {[%clk 0:03:00]}  Bd7 {[%clk 0:02:56]} 8. Bxc6 {[%clk 0:03:00]}  bxc6 {[%clk 0:02:57]} 9. O-O {[%clk 0:03:01]}  Bc5 {[%clk 0:02:57]} 10. Be3 {[%clk 0:03:00]}  Bb6 {[%clk 0:02:57]} 11. Nd2 {[%clk 0:02:55]}  c5 {[%clk 0:02:57]} 12. N4b3 {[%clk 0:02:33]}  Nxd2 {[%clk 0:02:51]} 13. Qxd2 {[%clk 0:02:33]}  d4 {[%clk 0:02:45]} 14. Bg5 {[%clk 0:02:31]}  Qc8 {[%clk 0:02:44]} 15. c3 {[%clk 0:02:11]}  Be6 {[%clk 0:01:52]} 16. cxd4 {[%clk 0:02:04]}  Bxb3 {[%clk 0:01:49]} 17. dxc5 {[%clk 0:01:58]}  Bc4 {[%clk 0:01:43]} 18. Rfc1 {[%clk 0:01:57]}  Qe6 {[%clk 0:01:41]} 19. cxb6 {[%clk 0:01:54]}  axb6 {[%clk 0:01:36]} 20. Qb4 {[%clk 0:01:50]}  b5 {[%clk 0:01:25]} 21. b3 {[%clk 0:01:45]}  h6 {[%clk 0:01:23]} 22. Bh4 {[%clk 0:01:40]}  g5 {[%clk 0:01:17]} 23. Bg3 {[%clk 0:01:35]}  Bd5 {[%clk 0:01:16]} 24. Rxc7 {[%clk 0:01:34]}  Bxb3 {[%clk 0:01:15]} 25. Rac1 {[%clk 0:01:16]}  Bxa2 {[%clk 0:01:12]} 26. R1c6 {[%clk 0:01:10]}  Kd8 {[%clk 0:00:40]} 27. Rxe6 {[%clk 0:01:03]}  Bxe6 {[%clk 0:00:41]} 28. Qe7# {[%clk 0:01:02]} 1-0


[Site "https://www.chess.com"]

[Event "Titled Tuesday Blitz November 01 Late 2022"]
[White "Golubova, Anna"]
[Black "O`Gorman, Tom"]
[WhiteFideId "24173606"]
[BlackFideId "2508249"]
[WhiteElo "2047"]
[BlackElo "2271"]
[Result "1-0"]
[Round "05"]
[TimeControl "180+1"]
[Date "2022.11.02"]
[WhiteClock "0:00:23"]
[BlackClock "0:00:18"]

1. Nf3 {[%clk 0:02:35]}  Nf6 {[%clk 0:02:44]} 2. g3 {[%clk 0:02:35]}  g6 {[%clk 0:02:44]} 3. Bg2 {[%clk 0:02:36]}  Bg7 {[%clk 0:02:45]} 4. O-O {[%clk 0:02:36]}  O-O {[%clk 0:02:45]} 5. d3 {[%clk 0:02:37]}  c5 {[%clk 0:02:45]} 6. e4 {[%clk 0:02:36]}  b5 {[%clk 0:02:41]} 7. a4 {[%clk 0:02:35]}  b4 {[%clk 0:02:40]} 8. Nbd2 {[%clk 0:02:35]}  Bb7 {[%clk 0:02:39]} 9. Nc4 {[%clk 0:02:34]}  a5 {[%clk 0:02:37]} 10. Re1 {[%clk 0:02:31]}  d5 {[%clk 0:02:37]} 11. exd5 {[%clk 0:02:30]}  Nxd5 {[%clk 0:02:38]} 12. d4 {[%clk 0:02:15]}  Qc7 {[%clk 0:02:21]} 13. dxc5 {[%clk 0:01:59]}  Qxc5 {[%clk 0:02:17]} 14. Nce5 {[%clk 0:01:57]}  Rd8 {[%clk 0:02:13]} 15. Nd3 {[%clk 0:01:57]}  Qc7 {[%clk 0:02:10]} 16. Bg5 {[%clk 0:01:56]}  h6 {[%clk 0:02:08]} 17. Bd2 {[%clk 0:01:54]}  Nc6 {[%clk 0:02:08]} 18. Rc1 {[%clk 0:01:53]}  Rac8 {[%clk 0:02:02]} 19. Nc5 {[%clk 0:01:36]}  Ba8 {[%clk 0:01:57]} 20. Nd3 {[%clk 0:01:24]}  e6 {[%clk 0:01:51]} 21. Qe2 {[%clk 0:01:21]}  Nb6 {[%clk 0:01:43]} 22. b3 {[%clk 0:01:20]}  Nd5 {[%clk 0:01:42]} 23. h4 {[%clk 0:01:19]}  Nc3 {[%clk 0:01:38]} 24. Bxc3 {[%clk 0:01:15]}  Bxc3 {[%clk 0:01:39]} 25. Red1 {[%clk 0:01:14]}  Nd4 {[%clk 0:01:38]} 26. Nxd4 {[%clk 0:01:13]}  Bxd4 {[%clk 0:01:39]} 27. Bxa8 {[%clk 0:01:12]}  Rxa8 {[%clk 0:01:38]} 28. Nf4 {[%clk 0:01:10]}  Rac8 {[%clk 0:01:32]} 29. Qe4 {[%clk 0:01:08]}  Bb2 {[%clk 0:01:22]} 30. Rxd8+ {[%clk 0:01:00]}  Rxd8 {[%clk 0:01:20]} 31. Rb1 {[%clk 0:01:00]}  Bg7 {[%clk 0:01:14]} 32. Re1 {[%clk 0:00:52]}  Rd2 {[%clk 0:01:12]} 33. Re2 {[%clk 0:00:53]}  Rxe2 {[%clk 0:00:55]} 34. Qxe2 {[%clk 0:00:51]}  Be5 {[%clk 0:00:52]} 35. Nd3 {[%clk 0:00:51]}  Bd4 {[%clk 0:00:52]} 36. Kh2 {[%clk 0:00:47]}  Qb6 {[%clk 0:00:50]} 37. h5 {[%clk 0:00:45]}  g5 {[%clk 0:00:50]} 38. Kg2 {[%clk 0:00:40]}  Kg7 {[%clk 0:00:50]} 39. Ne5 {[%clk 0:00:36]}  Qb7+ {[%clk 0:00:36]} 40. Kg1 {[%clk 0:00:34]}  Qc7 {[%clk 0:00:31]} 41. Nc4 {[%clk 0:00:34]}  Qxg3+ {[%clk 0:00:31]} 42. Kf1 {[%clk 0:00:33]}  Qh3+ {[%clk 0:00:30]} 43. Kg1 {[%clk 0:00:32]}  Qg3+ {[%clk 0:00:28]} 44. Kf1 {[%clk 0:00:32]}  Qf4 {[%clk 0:00:29]} 45. Nxa5 {[%clk 0:00:29]}  g4 {[%clk 0:00:28]} 46. Kg2 {[%clk 0:00:27]}  Be5 {[%clk 0:00:22]} 47. Qd3 {[%clk 0:00:21]}  Qh2+ {[%clk 0:00:20]} 48. Kf1 {[%clk 0:00:22]}  g3 {[%clk 0:00:17]} 49. fxg3 {[%clk 0:00:21]}  Bxg3 {[%clk 0:00:18]} 50. Qd4+ {[%clk 0:00:20]}  Be5 {[%clk 0:00:14]} 51. Qg1+ {[%clk 0:00:20]}  Qxg1+ {[%clk 0:00:14]} 52. Kxg1 {[%clk 0:00:21]}  Kf6 {[%clk 0:00:14]} 53. Nc6 {[%clk 0:00:21]}  Bd6 {[%clk 0:00:14]} 54. a5 {[%clk 0:00:22]}  e5 {[%clk 0:00:14]} 55. a6 {[%clk 0:00:22]}  Bc5+ {[%clk 0:00:15]} 56. Kg2 {[%clk 0:00:21]}  Kg5 {[%clk 0:00:14]} 57. Nxe5 {[%clk 0:00:20]}  Kxh5 {[%clk 0:00:14]} 58. Nc6 {[%clk 0:00:20]}  Kg5 {[%clk 0:00:14]} 59. a7 {[%clk 0:00:20]}  Bxa7 {[%clk 0:00:15]} 60. Nxa7 {[%clk 0:00:21]}  Kf4 {[%clk 0:00:15]} 61. Nc6 {[%clk 0:00:22]}  Ke4 {[%clk 0:00:16]} 62. Nxb4 {[%clk 0:00:22]}  Kd4 {[%clk 0:00:17]} 63. Nd3 {[%clk 0:00:22]}  Kc3 {[%clk 0:00:17]} 64. b4 {[%clk 0:00:22]}  Kxc2 {[%clk 0:00:17]} 65. b5 {[%clk 0:00:23]}  Kxd3 {[%clk 0:00:18]} 66. b6 {[%clk 0:00:23]} 1-0


[Site "https://www.chess.com"]

[Event "Titled Tuesday Blitz November 01 Late 2022"]
[White "Aggelis, Nikolaos"]
[Black "Hemam, Moulaye Brahim"]
[WhiteFideId "4213220"]
[BlackFideId "19600054"]
[WhiteElo "2187"]
[BlackElo "2088"]
[Result "1-0"]
[Round "05"]
[TimeControl "180+1"]
[Date "2022.11.02"]
[WhiteClock "0:01:22"]
[BlackClock "0:00:15"]

1. d4 {[%clk 0:02:56]}  Nf6 {[%clk 0:02:58]} 2. g3 {[%clk 0:02:55]}  g6 {[%clk 0:02:56]} 3. Bg2 {[%clk 0:02:55]}  Bg7 {[%clk 0:02:57]} 4. Nf3 {[%clk 0:02:56]}  O-O {[%clk 0:02:56]} 5. O-O {[%clk 0:02:57]}  d6 {[%clk 0:02:55]} 6. b3 {[%clk 0:02:57]}  c5 {[%clk 0:02:53]} 7. c4 {[%clk 0:02:55]}  Ne4 {[%clk 0:02:40]} 8. Bb2 {[%clk 0:02:54]}  Nc6 {[%clk 0:02:25]} 9. Nbd2 {[%clk 0:02:52]}  Nxd2 {[%clk 0:02:07]} 10. Qxd2 {[%clk 0:02:50]}  cxd4 {[%clk 0:02:07]} 11. Nxd4 {[%clk 0:02:48]}  Nxd4 {[%clk 0:02:03]} 12. Bxd4 {[%clk 0:02:49]}  Bxd4 {[%clk 0:02:03]} 13. Qxd4 {[%clk 0:02:50]}  Qc7 {[%clk 0:02:02]} 14. Rac1 {[%clk 0:02:49]}  Rb8 {[%clk 0:02:00]} 15. Qxa7 {[%clk 0:02:48]}  Bd7 {[%clk 0:01:50]} 16. c5 {[%clk 0:02:40]}  dxc5 {[%clk 0:01:42]} 17. Qxc5 {[%clk 0:02:35]}  Qxc5 {[%clk 0:01:28]} 18. Rxc5 {[%clk 0:02:35]}  b6 {[%clk 0:01:20]} 19. Rc7 {[%clk 0:02:30]}  Rfd8 {[%clk 0:01:19]} 20. a4 {[%clk 0:02:28]}  Be6 {[%clk 0:01:17]} 21. b4 {[%clk 0:02:21]}  Rd4 {[%clk 0:01:13]} 22. Rb1 {[%clk 0:02:17]}  Ba2 {[%clk 0:01:07]} 23. Ra1 {[%clk 0:02:09]}  Be6 {[%clk 0:00:53]} 24. a5 {[%clk 0:02:09]}  bxa5 {[%clk 0:00:52]} 25. bxa5 {[%clk 0:02:10]}  Bd5 {[%clk 0:00:46]} 26. Bxd5 {[%clk 0:02:05]}  Rxd5 {[%clk 0:00:46]} 27. Rxe7 {[%clk 0:02:04]}  Ra8 {[%clk 0:00:45]} 28. a6 {[%clk 0:02:04]}  Rd6 {[%clk 0:00:41]} 29. a7 {[%clk 0:02:04]}  Kg7 {[%clk 0:00:39]} 30. Rb7 {[%clk 0:01:57]}  Re6 {[%clk 0:00:37]} 31. Ra3 {[%clk 0:01:52]}  Ree8 {[%clk 0:00:36]} 32. Rf3 {[%clk 0:01:50]}  Rf8 {[%clk 0:00:35]} 33. Re3 {[%clk 0:01:50]}  Kf6 {[%clk 0:00:31]} 34. Ree7 {[%clk 0:01:50]}  h5 {[%clk 0:00:28]} 35. Kg2 {[%clk 0:01:47]}  g5 {[%clk 0:00:28]} 36. h3 {[%clk 0:01:45]}  g4 {[%clk 0:00:27]} 37. hxg4 {[%clk 0:01:43]}  hxg4 {[%clk 0:00:28]} 38. f3 {[%clk 0:01:42]}  gxf3+ {[%clk 0:00:29]} 39. exf3 {[%clk 0:01:43]}  Kg6 {[%clk 0:00:29]} 40. g4 {[%clk 0:01:43]}  Kf6 {[%clk 0:00:28]} 41. Kg3 {[%clk 0:01:43]}  Kg6 {[%clk 0:00:27]} 42. f4 {[%clk 0:01:43]}  Kf6 {[%clk 0:00:27]} 43. Rec7 {[%clk 0:01:35]}  Kg6 {[%clk 0:00:24]} 44. Rd7 {[%clk 0:01:33]}  Kf6 {[%clk 0:00:24]} 45. g5+ {[%clk 0:01:33]}  Kg6 {[%clk 0:00:23]} 46. Kg4 {[%clk 0:01:30]}  f5+ {[%clk 0:00:23]} 47. Kg3 {[%clk 0:01:23]}  Rg8 {[%clk 0:00:20]} 48. Rh7 {[%clk 0:01:22]}  Rad8 {[%clk 0:00:15]} 49. Rh6# {[%clk 0:01:22]} 1-0


[Site "https://www.chess.com"]

[Event "Titled Tuesday Blitz November 01 Late 2022"]
[White "Barria Zuniga, Daniel"]
[Black "Szente Varga, Fruzsina"]
[WhiteFideId "3400816"]
[BlackFideId "712264"]
[WhiteElo "2414"]
[BlackElo "1994"]
[Result "1-0"]
[Round "05"]
[TimeControl "180+1"]
[Date "2022.11.02"]
[WhiteClock "0:00:54"]
[BlackClock "0:00:09"]

1. c4 {[%clk 0:03:00]}  Nf6 {[%clk 0:02:59]} 2. Nc3 {[%clk 0:03:00]}  g6 {[%clk 0:02:59]} 3. d4 {[%clk 0:02:59]}  Bg7 {[%clk 0:02:59]} 4. e4 {[%clk 0:03:00]}  d6 {[%clk 0:03:00]} 5. Be2 {[%clk 0:03:00]}  O-O {[%clk 0:03:00]} 6. Nf3 {[%clk 0:03:00]}  e5 {[%clk 0:03:00]} 7. d5 {[%clk 0:03:00]}  Nbd7 {[%clk 0:02:58]} 8. Bg5 {[%clk 0:03:00]}  a5 {[%clk 0:02:52]} 9. Nd2 {[%clk 0:03:00]}  Nc5 {[%clk 0:02:50]} 10. O-O {[%clk 0:02:54]}  h6 {[%clk 0:02:47]} 11. Bh4 {[%clk 0:02:53]}  Qe8 {[%clk 0:02:47]} 12. b3 {[%clk 0:02:49]}  Nfd7 {[%clk 0:02:45]} 13. a3 {[%clk 0:02:29]}  f5 {[%clk 0:02:42]} 14. f3 {[%clk 0:02:29]}  g5 {[%clk 0:02:40]} 15. Bf2 {[%clk 0:02:28]}  f4 {[%clk 0:02:41]} 16. b4 {[%clk 0:02:29]}  Na6 {[%clk 0:02:39]} 17. c5 {[%clk 0:02:28]}  Nf6 {[%clk 0:02:26]} 18. Nc4 {[%clk 0:02:25]}  Rb8 {[%clk 0:02:10]} 19. cxd6 {[%clk 0:02:23]}  cxd6 {[%clk 0:02:07]} 20. Nxd6 {[%clk 0:02:21]}  Qe7 {[%clk 0:02:07]} 21. Nc4 {[%clk 0:02:10]}  axb4 {[%clk 0:02:04]} 22. d6 {[%clk 0:02:06]}  Qf7 {[%clk 0:02:01]} 23. axb4 {[%clk 0:02:01]}  Nd7 {[%clk 0:01:47]} 24. b5 {[%clk 0:01:57]}  Nac5 {[%clk 0:01:47]} 25. Nd5 {[%clk 0:01:45]}  Kh7 {[%clk 0:01:37]} 26. b6 {[%clk 0:01:39]}  h5 {[%clk 0:01:19]} 27. Ra5 {[%clk 0:01:37]}  Ne6 {[%clk 0:01:18]} 28. Nc7 {[%clk 0:01:32]}  Nf6 {[%clk 0:01:05]} 29. Nxe5 {[%clk 0:01:31]}  Qg8 {[%clk 0:00:59]} 30. d7 {[%clk 0:01:29]}  Nxd7 {[%clk 0:00:48]} 31. Nxd7 {[%clk 0:01:30]}  Rd8 {[%clk 0:00:48]} 32. Rd5 {[%clk 0:01:19]}  Bxd7 {[%clk 0:00:40]} 33. Rxd7 {[%clk 0:01:19]}  Nd4 {[%clk 0:00:20]} 34. Rxd4 {[%clk 0:01:07]}  Bxd4 {[%clk 0:00:19]} 35. Bxd4 {[%clk 0:01:07]}  g4 {[%clk 0:00:17]} 36. fxg4 {[%clk 0:00:59]}  Qg6 {[%clk 0:00:17]} 37. Nd5 {[%clk 0:00:57]}  Kh6 {[%clk 0:00:12]} 38. Rxf4 {[%clk 0:00:55]}  Qe6 {[%clk 0:00:10]} 39. Rf6+ {[%clk 0:00:54]}  Qxf6 {[%clk 0:00:09]} 1-0


[Site "https://www.chess.com"]

[Event "Titled Tuesday Blitz November 01 Late 2022"]
[White "Bayo Milagro, Alvaro"]
[Black "Salman, Pavel"]
[WhiteFideId "22275240"]
[BlackFideId "24153753"]
[WhiteElo "2270"]
[BlackElo "2187"]
[Result "1-0"]
[Round "05"]
[TimeControl "180+1"]
[Date "2022.11.02"]
[WhiteClock "0:00:17"]
[BlackClock "0:00:07"]

1. e4 {[%clk 0:02:58]}  c5 {[%clk 0:02:58]} 2. Nf3 {[%clk 0:02:57]}  e6 {[%clk 0:02:59]} 3. d4 {[%clk 0:02:57]}  cxd4 {[%clk 0:03:00]} 4. Nxd4 {[%clk 0:02:58]}  a6 {[%clk 0:03:01]} 5. Nc3 {[%clk 0:02:58]}  Qc7 {[%clk 0:03:01]} 6. Qd3 {[%clk 0:02:58]}  Nf6 {[%clk 0:02:57]} 7. Qg3 {[%clk 0:02:55]}  Qxg3 {[%clk 0:02:54]} 8. hxg3 {[%clk 0:02:56]}  Bb4 {[%clk 0:02:55]} 9. Bd3 {[%clk 0:02:53]}  d5 {[%clk 0:02:45]} 10. exd5 {[%clk 0:02:51]}  Nxd5 {[%clk 0:02:41]} 11. Bd2 {[%clk 0:02:51]}  Nxc3 {[%clk 0:02:07]} 12. bxc3 {[%clk 0:02:48]}  Ba5 {[%clk 0:02:05]} 13. O-O-O {[%clk 0:02:44]}  h6 {[%clk 0:01:32]} 14. Kb2 {[%clk 0:02:33]}  Nc6 {[%clk 0:01:32]} 15. Nb3 {[%clk 0:02:12]}  Bb6 {[%clk 0:01:28]} 16. f4 {[%clk 0:02:07]}  Bd7 {[%clk 0:01:21]} 17. c4 {[%clk 0:02:02]}  a5 {[%clk 0:01:16]} 18. c5 {[%clk 0:02:02]}  Bd8 {[%clk 0:01:16]} 19. Bc3 {[%clk 0:01:59]}  a4 {[%clk 0:01:13]} 20. Nd2 {[%clk 0:01:56]}  a3+ {[%clk 0:01:12]} 21. Kc1 {[%clk 0:01:50]}  Bf6 {[%clk 0:01:00]} 22. Bxf6 {[%clk 0:01:48]}  gxf6 {[%clk 0:01:01]} 23. Nc4 {[%clk 0:01:26]}  Nb4 {[%clk 0:00:48]} 24. Nd6+ {[%clk 0:01:14]}  Ke7 {[%clk 0:00:48]} 25. Bc4 {[%clk 0:01:14]}  Bc6 {[%clk 0:00:41]} 26. Rh2 {[%clk 0:01:01]}  Ra5 {[%clk 0:00:32]} 27. Rh5 {[%clk 0:00:46]}  Bxg2 {[%clk 0:00:23]} 28. c3 {[%clk 0:00:45]}  Nc6 {[%clk 0:00:15]} 29. Rh2 {[%clk 0:00:30]}  Bf3 {[%clk 0:00:13]} 30. Rd3 {[%clk 0:00:26]}  Bg4 {[%clk 0:00:06]} 31. Nxb7 {[%clk 0:00:25]}  Ra7 {[%clk 0:00:06]} 32. Nd6 {[%clk 0:00:24]}  Rd8 {[%clk 0:00:06]} 33. Rxh6 {[%clk 0:00:21]}  Be2 {[%clk 0:00:06]} 34. Rd2 {[%clk 0:00:16]}  Bxc4 {[%clk 0:00:06]} 35. Nxc4 {[%clk 0:00:17]}  Rxd2 {[%clk 0:00:07]} 36. Kxd2 {[%clk 0:00:18]}  Rc7 {[%clk 0:00:07]} 37. Rh5 {[%clk 0:00:16]}  Ra7 {[%clk 0:00:06]} 38. Kc2 {[%clk 0:00:16]}  Na5 {[%clk 0:00:05]} 39. Nxa5 {[%clk 0:00:16]}  Rxa5 {[%clk 0:00:06]} 40. Kb3 {[%clk 0:00:17]}  Kd7 {[%clk 0:00:07]} 41. c6+ {[%clk 0:00:17]} 1-0


[Site "https://www.chess.com"]

[Event "Titled Tuesday Blitz November 01 Late 2022"]
[White "Bjelobrk, Igor"]
[Black "Bilan, Danila"]
[WhiteFideId "4300726"]
[BlackFideId "24161918"]
[WhiteElo "2335"]
[BlackElo "2203"]
[Result "1-0"]
[Round "05"]
[TimeControl "180+1"]
[Date "2022.11.02"]
[WhiteClock "0:00:18"]
[BlackClock "0:00:06"]

1. d4 {[%clk 0:03:00]}  d5 {[%clk 0:02:42]} 2. c4 {[%clk 0:03:00]}  c6 {[%clk 0:02:42]} 3. Nf3 {[%clk 0:02:58]}  Nf6 {[%clk 0:02:43]} 4. Qc2 {[%clk 0:02:56]}  g6 {[%clk 0:02:42]} 5. cxd5 {[%clk 0:02:56]}  cxd5 {[%clk 0:02:43]} 6. Bf4 {[%clk 0:02:52]}  Nc6 {[%clk 0:02:43]} 7. e3 {[%clk 0:02:50]}  Bf5 {[%clk 0:02:42]} 8. Qb3 {[%clk 0:02:49]}  Qb6 {[%clk 0:02:33]} 9. Qxb6 {[%clk 0:02:45]}  axb6 {[%clk 0:02:34]} 10. Nc3 {[%clk 0:02:45]}  Bg7 {[%clk 0:02:30]} 11. Be2 {[%clk 0:02:45]}  O-O {[%clk 0:02:30]} 12. O-O {[%clk 0:02:43]}  Rfc8 {[%clk 0:02:27]} 13. Rfc1 {[%clk 0:02:40]}  e6 {[%clk 0:02:19]} 14. Nb5 {[%clk 0:02:32]}  Ne8 {[%clk 0:02:07]} 15. Rc3 {[%clk 0:02:18]}  h6 {[%clk 0:01:59]} 16. a3 {[%clk 0:02:16]}  g5 {[%clk 0:01:56]} 17. Bg3 {[%clk 0:02:15]}  Ne7 {[%clk 0:01:54]} 18. Nc7 {[%clk 0:02:06]}  Nxc7 {[%clk 0:01:32]} 19. Bxc7 {[%clk 0:02:07]}  Bf8 {[%clk 0:01:19]} 20. Bxb6 {[%clk 0:02:05]}  Rxc3 {[%clk 0:01:18]} 21. bxc3 {[%clk 0:02:05]}  Nc6 {[%clk 0:01:18]} 22. a4 {[%clk 0:02:03]}  Bd6 {[%clk 0:01:11]} 23. a5 {[%clk 0:02:03]}  Kf8 {[%clk 0:01:09]} 24. Nd2 {[%clk 0:01:54]}  Ke7 {[%clk 0:01:07]} 25. Ra2 {[%clk 0:01:38]}  f6 {[%clk 0:00:53]} 26. Nb3 {[%clk 0:01:35]}  e5 {[%clk 0:00:49]} 27. h3 {[%clk 0:01:26]}  Nb8 {[%clk 0:00:36]} 28. c4 {[%clk 0:01:21]}  dxc4 {[%clk 0:00:32]} 29. Bxc4 {[%clk 0:01:20]}  Nd7 {[%clk 0:00:33]} 30. dxe5 {[%clk 0:01:06]}  fxe5 {[%clk 0:00:26]} 31. Nd2 {[%clk 0:00:29]}  Nxb6 {[%clk 0:00:24]} 32. axb6 {[%clk 0:00:30]}  Rxa2 {[%clk 0:00:24]} 33. Bxa2 {[%clk 0:00:30]}  Bc5 {[%clk 0:00:25]} 34. Bd5 {[%clk 0:00:31]}  Bc8 {[%clk 0:00:22]} 35. Nc4 {[%clk 0:00:30]}  Be6 {[%clk 0:00:20]} 36. e4 {[%clk 0:00:28]}  Bxd5 {[%clk 0:00:11]} 37. exd5 {[%clk 0:00:29]}  e4 {[%clk 0:00:12]} 38. Kf1 {[%clk 0:00:27]}  Kf6 {[%clk 0:00:12]} 39. g4 {[%clk 0:00:27]}  Bd4 {[%clk 0:00:08]} 40. Ke2 {[%clk 0:00:27]}  Ke7 {[%clk 0:00:08]} 41. f3 {[%clk 0:00:27]}  exf3+ {[%clk 0:00:07]} 42. Kxf3 {[%clk 0:00:28]}  Bc5 {[%clk 0:00:07]} 43. Ke4 {[%clk 0:00:28]}  Kf6 {[%clk 0:00:07]} 44. Kd3 {[%clk 0:00:26]}  Bf2 {[%clk 0:00:05]} 45. Kc3 {[%clk 0:00:26]}  Ke7 {[%clk 0:00:04]} 46. Kb4 {[%clk 0:00:26]}  Bd4 {[%clk 0:00:03]} 47. Kb5 {[%clk 0:00:26]}  Kd7 {[%clk 0:00:04]} 48. Na5 {[%clk 0:00:23]}  Kd6 {[%clk 0:00:03]} 49. Nxb7+ {[%clk 0:00:22]}  Kxd5 {[%clk 0:00:04]} 50. Nd8 {[%clk 0:00:21]}  Ke4 {[%clk 0:00:02]} 51. b7 {[%clk 0:00:18]}  Be5 {[%clk 0:00:02]} 52. Nf7 {[%clk 0:00:17]}  Bb8 {[%clk 0:00:02]} 53. Kc6 {[%clk 0:00:15]}  Kf4 {[%clk 0:00:02]} 54. Nxh6 {[%clk 0:00:15]}  Kg3 {[%clk 0:00:03]} 55. Kd7 {[%clk 0:00:15]}  Kxh3 {[%clk 0:00:03]} 56. Kc8 {[%clk 0:00:16]}  Be5 {[%clk 0:00:03]} 57. b8=Q {[%clk 0:00:16]}  Bxb8 {[%clk 0:00:04]} 58. Kxb8 {[%clk 0:00:17]}  Kg3 {[%clk 0:00:04]} 59. Kc8 {[%clk 0:00:17]}  Kf4 {[%clk 0:00:05]} 60. Kd7 {[%clk 0:00:17]}  Ke5 {[%clk 0:00:06]} 61. Ke7 {[%clk 0:00:18]} 1-0


[Site "https://www.chess.com"]

[Event "Titled Tuesday Blitz November 01 Late 2022"]
[White "Bluebaum, Matthias"]
[Black "Bersamina, Paulo"]
[WhiteFideId "24651516"]
[BlackFideId "5206995"]
[WhiteElo "2633"]
[BlackElo "2332"]
[Result "1-0"]
[Round "05"]
[TimeControl "180+1"]
[Date "2022.11.01"]
[WhiteClock "0:00:46"]
[BlackClock "0:00:02"]

1. d4 {[%clk 0:03:00]}  Nf6 {[%clk 0:03:00]} 2. c4 {[%clk 0:03:01]}  g6 {[%clk 0:02:59]} 3. Nc3 {[%clk 0:03:01]}  d5 {[%clk 0:03:00]} 4. cxd5 {[%clk 0:03:02]}  Nxd5 {[%clk 0:03:01]} 5. e4 {[%clk 0:03:03]}  Nxc3 {[%clk 0:03:01]} 6. bxc3 {[%clk 0:03:04]}  Bg7 {[%clk 0:03:02]} 7. Nf3 {[%clk 0:03:05]}  c5 {[%clk 0:03:03]} 8. Bb5+ {[%clk 0:03:06]}  Nd7 {[%clk 0:03:00]} 9. O-O {[%clk 0:03:06]}  O-O {[%clk 0:03:01]} 10. e5 {[%clk 0:03:00]}  Nb6 {[%clk 0:02:55]} 11. Ba3 {[%clk 0:02:58]}  cxd4 {[%clk 0:02:52]} 12. cxd4 {[%clk 0:02:59]}  Nd5 {[%clk 0:02:48]} 13. Qb3 {[%clk 0:02:50]}  Be6 {[%clk 0:02:41]} 14. Ng5 {[%clk 0:02:47]}  Rb8 {[%clk 0:02:37]} 15. Nxe6 {[%clk 0:02:39]}  fxe6 {[%clk 0:02:38]} 16. Rac1 {[%clk 0:02:38]}  Bh6 {[%clk 0:02:36]} 17. Rc2 {[%clk 0:02:36]}  a6 {[%clk 0:02:21]} 18. Bd3 {[%clk 0:02:35]}  Rf7 {[%clk 0:02:12]} 19. g3 {[%clk 0:02:34]}  b5 {[%clk 0:01:45]} 20. Bc5 {[%clk 0:02:28]}  Bf8 {[%clk 0:01:31]} 21. Be4 {[%clk 0:02:28]}  Qd7 {[%clk 0:01:29]} 22. a4 {[%clk 0:02:18]}  b4 {[%clk 0:01:23]} 23. a5 {[%clk 0:02:17]}  Rb5 {[%clk 0:01:22]} 24. Bb6 {[%clk 0:01:58]}  Nxb6 {[%clk 0:01:04]} 25. Bc6 {[%clk 0:01:58]}  Qxd4 {[%clk 0:00:33]} 26. Bxb5 {[%clk 0:01:58]}  axb5 {[%clk 0:00:32]} 27. axb6 {[%clk 0:01:59]}  Qxb6 {[%clk 0:00:32]} 28. Qxb4 {[%clk 0:01:59]}  Rf5 {[%clk 0:00:29]} 29. Rc5 {[%clk 0:01:59]}  Bg7 {[%clk 0:00:26]} 30. Rxb5 {[%clk 0:01:58]}  Qc7 {[%clk 0:00:25]} 31. Rb7 {[%clk 0:01:49]}  Qxe5 {[%clk 0:00:22]} 32. Qxe7 {[%clk 0:01:49]}  h5 {[%clk 0:00:15]} 33. Rb6 {[%clk 0:01:30]}  Rf6 {[%clk 0:00:13]} 34. Rb3 {[%clk 0:01:17]}  h4 {[%clk 0:00:12]} 35. Re3 {[%clk 0:01:17]}  Qf5 {[%clk 0:00:09]} 36. f4 {[%clk 0:01:12]}  hxg3 {[%clk 0:00:09]} 37. hxg3 {[%clk 0:01:13]}  g5 {[%clk 0:00:08]} 38. Re5 {[%clk 0:01:12]}  Qd3 {[%clk 0:00:03]} 39. Qe8+ {[%clk 0:00:57]}  Kh7 {[%clk 0:00:02]} 40. Rxg5 {[%clk 0:00:46]}  Qd4+ {[%clk 0:00:03]} 41. Kg2 {[%clk 0:00:46]}  Qe4+ {[%clk 0:00:02]} 42. Rf3 {[%clk 0:00:45]}  Qe2+ {[%clk 0:00:02]} 43. Rf2 {[%clk 0:00:45]}  Qe4+ {[%clk 0:00:02]} 44. Kh2 {[%clk 0:00:46]}  e5 {[%clk 0:00:01]} 45. Rh5+ {[%clk 0:00:46]}  Bh6 {[%clk 0:00:01]} 46. Qe7+ {[%clk 0:00:46]}  Kg6 {[%clk 0:00:02]} 47. Rxh6+ {[%clk 0:00:46]} 1-0


[Site "https://www.chess.com"]